Workbook

Sheet 8貸出
A1: ８ 貸出
A2: 館 名 | C2: 登録者数 | I2: 個人貸出冊数 | Q2: 団体貸出
C3: 総 計 | H3: 登録率 | I3: 総 計 | P3: 人口1人当貸出 冊数 | Q3: 貸出冊数 | R3: 団体数
D4: 本館・分館 | F4: 移動図書館車 | J4: 本館・分館 | M4: 移動図書館車
E5: う ち 児 童 | G5: う ち 児 童 | K5: う ち 児 童 | L5: う ち 視 聴 覚資料 | N5: う ち 児 童 | O5: うち 視聴覚資料
C6: 人 | H6: ％ | I6: 冊 | L6: 点 | O6: 点 | P6: 冊 | Q6: 冊 | T6: 人口
A7: 県立長野 | C7: =D7+F7 -> 100456 | D7: 100456 | E7: 5242 | H7: =C7*100/T7 -> 5.003668474 | I7: 99261 | J7: 99261 | K7: 57610 | P7: =I7/T7 -> 0.04944146058 | T7: 2007647 | U7: 県立長野
A8: 長野市立長野 | C8: =D8+F8 -> 30983 | D8: 30983 | E8: 3004 | H8: =C8*100/T8 -> 8.486819038 | I8: 863762 | J8: 863762 | K8: 319084 | L8: 12952 | P8: =(I8+I9)/T8 -> 4.270612372 | Q8: 14807 | R8: 73 | T8: 365072 | U8: 長野市立長野
A9: 長野市立南部 | C9: =D9+F9 -> 18883 | D9: 15555 | E9: 2439 | F9: 3328 | G9: 483 | I9: =J9+M9 -> 695319 | J9: 574749 | K9: 227513 | L9: 88 | M9: 120570 | N9: 35822 | O9: 86 | Q9: 34235 | R9: 61 | U9: 長野市立南部
A10: 松本市中央 | C10: =D10+F10 -> 21653 | D10: 21653 | E10: 2285 | H10: =(C10+C11+C12+C13+C14+C15+C16+C17+C18+C19+C20)*100/T10 -> 21.65706263 | I10: 574314 | J10: 574314 | K10: 193476 | L10: 29142 | P10: =(I10+I11+I12+I13+I14+I15+I16+I17+I18+I19+I20)/T10 -> 6.38685749 | Q10: 25787 | R10: 52 | T10: 238615 | U10: 松本市中央
B11: あがたの森 | C11: 3112 | D11: 3112 | E11: 475 | I11: 77019 | J11: 77019 | K11: 36330 | L11: 348 | V11: あがたの森
B12: 鎌田 | C12: 2120 | D12: 2120 | E12: 396 | I12: 79697 | J12: 79697 | K12: 37544 | L12: 280 | V12: 鎌田
B13: 南部 | C13: 8555 | D13: 8555 | E13: 1169 | I13: 244245 | J13: 244245 | K13: 112840 | L13: 4769 | V13: 南部
B14: 寿台 | C14: 2132 | D14: 2132 | E14: 326 | I14: 68244 | J14: 68244 | K14: 31317 | L14: 340 | V14: 寿台
B15: 本郷 | C15: 2104 | D15: 2104 | E15: 491 | I15: 97956 | J15: 97956 | K15: 53471 | L15: 293 | V15: 本郷
B16: 中山文庫 | C16: 812 | D16: 812 | E16: 152 | I16: 47940 | J16: 47940 | K16: 23931 | L16: 154 | V16: 中山文庫
B17: 島内 | C17: 2018 | D17: 2018 | E17: 374 | I17: 65690 | J17: 65690 | K17: 31585 | L17: 309 | V17: 島内
B18: 空港 | C18: 3384 | D18: 3384 | E18: 620 | I18: 93758 | J18: 93758 | K18: 42951 | L18: 696 | V18: 空港
B19: 波田 | C19: =D19+F19 -> 3663 | D19: 3663 | E19: 534 | I19: 92833 | J19: 92833 | K19: 45394 | L19: 727 | V19: 波田
B20: 梓川 | C20: 2124 | D20: 2124 | E20: 371 | I20: 82304 | J20: 82304 | K20: 38485 | L20: 721 | V20: 波田
A21: 上田市立上田 | C21: =D21+F21 -> 16716 | D21: 16493 | E21: 1452 | F21: 223 | G21: 5 | H21: =(C21+C22+C23)*100/T21 -> 16.48283382 | I21: =J21+M21 -> 332824 | J21: 322501 | K21: 119871 | M21: 10323 | N21: 1776 | P21: =(I21+I22+I23+I24)/T21 -> 4.122116115 | Q21: 7829 | R21: 94 | T21: 151315 | U21: 上田市立上田
A22: 上田市立丸子 | C22: =D22+F22 -> 4799 | D22: 4799 | I22: =J22+M22 -> 170141 | J22: 156742 | K22: 66993 | L22: 0 | M22: 13399 | N22: 6500 | O22: 0 | Q22: 6017 | R22: 38 | U22: 上田市立丸子金子
A23: 上田情報 ライブラリー | C23: 3426 | D23: 3426 | E23: 225 | I23: 58836 | J23: 58836 | K23: 11148 | L23: 374 | U23: 上田情報ライブラリー
A24: 上田市立真田 | C24: 2249 | D24: 2249 | E24: 304 | I24: 61937 | J24: 61937 | K24: 25584 | Q24: 1028 | R24: 32 | U24: 上 田 市 立 真 田
A25: 市立岡谷 | C25: 34756 | D25: 34756 | E25: 1724 | H25: =C25*100/T25 -> 75.12861528 | I25: 207844 | J25: 207844 | K25: 112555 | L25: 4984 | P25: =I25/T25 -> 4.492758636 | Q25: 6415 | R25: 56 | T25: 46262 | U25: 市立岡谷
A26: 飯田市立中央 | C26: 17246 | D26: 17246 | E26: 2024 | H26: =(C26+C27+C28+C29+C30+C31+C32+C33+C34+C35+C36+C37+C38+C39+C40+C41+C42+C43+C44)*100/T26 -> 30.44205873 | I26: 345794 | J26: 345794 | K26: 106696 | L26: 154 | P26: =(I26+I27+I28+I29+I30+I31+I32+I33+I34+I35+I36+I37+I38+I39+I40+I41+I42+I43+I44)/T26 -> 6.746300389 | Q26: 8684 | R26: 102 | T26: 95010 | U26: 飯田市立中央
B27: 羽場分館 | C27: 177 | D27: 177 | E27: 83 | I27: 5716 | J27: 5716 | Q27: 154 | R27: 3 | V27: 上郷
B28: 丸山分館 | C28: 109 | D28: 109 | E28: 52 | I28: 3665 | J28: 3665 | Q28: 428 | R28: 2 | V28: 鼎
B29: 東野分館 | C29: 110 | D29: 110 | E29: 51 | I29: 3816 | J29: 3816 | Q29: 381 | R29: 2 | V29: 羽場分館
B30: 座光寺 分 館 | C30: 131 | D30: 131 | E30: 67 | I30: 3172 | J30: 3172 | Q30: 661 | R30: 1 | V30: 丸山分館
B31: 松尾分館 | C31: 694 | D31: 694 | E31: 485 | I31: 16445 | J31: 16445 | Q31: 1600 | R31: 5 | V31: 東野分館
B32: 下久堅 分 館 | C32: 193 | D32: 193 | E32: 102 | I32: 5349 | J32: 5349 | Q32: 723 | R32: 10 | V32: 座光寺分館
B33: 上久堅 分 館 | C33: 136 | D33: 136 | E33: 57 | I33: 3407 | J33: 3407 | Q33: 546 | R33: 6 | V33: 松尾分館
B34: 千代分館 | C34: 126 | D34: 126 | E34: 65 | I34: 5377 | J34: 5377 | Q34: 2224 | R34: 12 | V34: 下久堅分館
B35: 龍江分館 | C35: 135 | D35: 135 | E35: 71 | I35: 4350 | J35: 4350 | Q35: 3045 | R35: 14 | V35: 上久堅分館
B36: 竜丘分館 | C36: 509 | D36: 509 | E36: 260 | I36: 20631 | J36: 20631 | Q36: 1166 | R36: 4 | V36: 千代分館
B37: 川路分館 | C37: 120 | D37: 120 | E37: 60 | I37: 3627 | J37: 3627 | Q37: 2429 | R37: 14 | V37: 龍江分館
B38: 三穂分館 | C38: 137 | D38: 137 | E38: 83 | I38: 3447 | J38: 3447 | Q38: 1749 | R38: 17 | V38: 竜丘分館
B39: 山本分館 | C39: 177 | D39: 177 | E39: 95 | I39: 4657 | J39: 4657 | Q39: 2806 | R39: 14 | V39: 川路分館
B40: 伊賀良 分 館 | C40: 746 | D40: 746 | E40: 406 | I40: 18007 | J40: 18007 | Q40: 2234 | R40: 17 | V40: 三穂分館
B41: 上村分館 | C41: 23 | D41: 23 | E41: 11 | I41: 835 | J41: 835 | Q41: 182 | R41: 4 | V41: 山本分館
B42: 南信濃 分 館 | C42: 63 | D42: 63 | E42: 31 | I42: 1230 | J42: 1230 | Q42: 365 | R42: 5 | V42: 伊賀良分館
A43: 飯田市立上郷 | C43: 4763 | D43: 4763 | E43: 887 | I43: 116285 | J43: 116285 | K43: 51441 | L43: 645 | Q43: 19201 | R43: 274 | V43: 上村分館
A44: 飯田市立鼎 | C44: 3328 | D44: 3328 | E44: 847 | I44: 75156 | J44: 75156 | K44: 33457 | L44: 37 | Q44: 4535 | R44: 51 | V44: 南信濃分館
A45: 諏訪市 | C45: 16647 | D45: 16647 | E45: 2064 | H45: =(C45+C46)*100/T45 -> 45.7428241 | I45: 269544 | J45: 269544 | K45: 95957 | L45: 9999 | P45: =(I45+I46)/T45 -> 5.912038692 | Q45: 21259 | R45: 87 | T45: 47555 | U45: 諏訪市
B46: 信州風樹 文 庫 | C46: 5106 | D46: 5106 | E46: 698 | I46: 11603 | J46: 11603 | K46: 3653 | Q46: 142 | R46: 4 | V46: 信州風樹文庫
A47: 市立須坂 | C47: 26513 | D47: 26513 | E47: 1721 | H47: =C47*100/T47 -> 54.27764243 | I47: 219791 | J47: 219791 | K47: 93617 | L47: 5578 | P47: =I47/T47 -> 4.499580322 | Q47: 3759 | R47: 50 | T47: 48847 | U47: 市立須坂
A48: 市立小諸 | C48: 19326 | D48: 19326 | E48: 1187 | H48: =C48*100/T48 -> 47.70438389 | I48: 249292 | J48: 249292 | K48: 92385 | L48: 3056 | P48: =I48/T48 -> 6.153534755 | Q48: 6865 | R48: 55 | T48: 40512 | U48: 市立小諸
A49: 伊那市立伊那 | C49: 60712 | D49: 60712 | E49: 1706 | H49: =(C49+C50)*100/T49 -> 104.5693465 | I49: 405384 | J49: 405384 | K49: 195809 | L49: 10485 | P49: =(I49+I50)/T49 -> 6.870532599 | Q49: 4408 | R49: 42 | T49: 64495 | U49: 伊那市立伊那
A50: 伊那市立高遠町 | C50: 6730 | D50: 6730 | E50: 292 | I50: 37731 | J50: 37731 | K50: 17678 | L50: 2024 | Q50: 1050 | R50: 17 | U50: 伊那市立高遠町
A51: 駒ケ根市立 | C51: 14098 | D51: 14098 | E51: 1089 | H51: =(C51+C52+C53)*100/T51 -> 47.01286327 | I51: 164572 | J51: 164572 | K51: 83014 | L51: 3240 | P51: =(I51+I52+I53)/T51 -> 5.551532476 | Q51: 21263 | R51: 48 | T51: 31485 | U51: 駒ケ根市立
B52: 東伊那 分 館 | C52: =D52+F52 -> 313 | D52: 313 | E52: 72 | I52: 4663 | J52: 4663 | K52: 3885 | L52: 86 | Q52: 65 | R52: 1 | V52: 東伊那分館
B53: 中沢分館 | C53: =D53+F53 -> 391 | D53: 391 | E53: 82 | I53: 5555 | J53: 5555 | K53: 4239 | L53: 214 | Q53: 114 | R53: 1 | V53: 中沢分館
A54: 中野市立 | C54: 20093 | D54: 20093 | E54: 915 | H54: =(C54+C55+C56+C57)*100/T54 -> 51.52017151 | I54: 141338 | J54: 141338 | K54: 64996 | L54: 602 | P54: =(I54+I55+I56+I57)/T54 -> 3.623757552 | Q54: 3492 | R54: 28 | T54: 41048 | U54: 中野市立
B55: 北部分館 | C55: 110 | D55: 110 | E55: 7 | I55: 986 | J55: 986 | K55: 400 | Q55: 3 | R55: 1 | V55: 北部分館
B56: 西部分館 | C56: 100 | D56: 100 | E56: 3 | I56: 614 | J56: 614 | K56: 489 | Q56: 24 | R56: 2 | V56: 西部分館
B57: 豊田分館 | C57: 845 | D57: 845 | E57: 32 | I57: 5810 | J57: 5810 | K57: 3721 | Q57: 248 | R57: 5 | V57: 豊田分館
A58: 市立大町 | C58: 12276 | D58: 12276 | E58: 1156 | H58: =C58*100/T58 -> 49.08632892 | I58: 123185 | J58: 123185 | K58: 50110 | L58: 2872 | P58: =I58/T58 -> 4.925626774 | Q58: 9623 | R58: 57 | T58: 25009 | U58: 市立大町
A59: 市立飯山 | C59: 13829 | D59: 13829 | E59: 935 | H59: =C59*100/T59 -> 74.43750673 | I59: =J59+M59 -> 65825 | J59: 60408 | K59: 17548 | L59: 753 | M59: 5417 | P59: =I59/T59 -> 3.54316934 | Q59: 13200 | R59: 418 | S59: ※4 | T59: 18578 | U59: 市立飯山
A60: 茅野市 | C60: 20574 | D60: 20574 | E60: 4222 | H60: =C60*100/T60 -> 37.20164907 | I60: 220071 | J60: 220071 | K60: 73484 | L60: 3654 | P60: =I60/T60 -> 3.979296253 | Q60: 18240 | R60: 63 | T60: 55304 | U60: 茅野市
A61: 塩尻市立 | C61: =D61+F61 -> 30279 | D61: 30279 | E61: 3873 | H61: =C61*100/T61 -> 45.66761685 | I61: 404438 | J61: 404438 | K61: 142588 | L61: 22521 | P61: =(I61+I62+I63+I64+I65+I66+I67+I68+I69)/T61 -> 9.830942793 | Q61: 19944 | R61: - | T61: 66303 | U61: 塩尻市立
B62: 広丘図書館 | C62: 2995 | D62: 2995 | E62: 549 | I62: 153439 | J62: 153439 | K62: 71516 | L62: 4110 | Q62: 7146 | R62: - | V62: 広丘図書館
B63: 北小野 分 館 | C63: 212 | D63: 212 | E63: 29 | I63: 9240 | J63: 9240 | K63: 4239 | L63: 425 | Q63: 345 | R63: - | V63: 北小野分館
B64: 片丘分館 | C64: 207 | D64: 207 | E64: 65 | I64: 7396 | J64: 7396 | K64: 2379 | L64: 111 | Q64: 605 | R64: - | V64: 片丘分館
B65: 塩尻東 分 館 | C65: 339 | D65: 339 | E65: 30 | I65: 24134 | J65: 24134 | K65: 13253 | L65: 211 | Q65: 2038 | R65: - | V65: 塩尻東分館
B66: 宗賀分館 | C66: 267 | D66: 267 | E66: 85 | I66: 11716 | J66: 11716 | K66: 5492 | L66: 1350 | Q66: 2512 | R66: - | V66: 宗賀分館
B67: 洗馬分館 | C67: 302 | D67: 302 | E67: 102 | I67: 15286 | J67: 15286 | K67: 8143 | L67: 246 | Q67: 2174 | R67: - | V67: 洗馬分館
B68: 吉田分館 | C68: =D68+F68 -> 1214 | D68: 1214 | E68: 361 | I68: 20460 | J68: 20460 | K68: 8570 | L68: 253 | Q68: 2873 | R68: - | V68: 吉田分館
B69: 楢川分館 | C69: =D69+F69 -> 245 | D69: 245 | E69: 41 | I69: 5712 | J69: 5712 | K69: 2543 | L69: 102 | Q69: 547 | R69: - | V69: 楢川分館
A70: 佐久市立中央 | C70: 42246 | D70: 41469 | E70: 2822 | F70: 777 | G70: 19 | H70: =(C70+C71+C72+C73+C74)*100/T70 -> 63.35644938 | I70: =J70+M70 -> 328455 | J70: 319982 | K70: 161604 | L70: 374 | M70: 8473 | N70: 2174 | O70: 0 | P70: =(I70+I71+I72+I73+I74)/T70 -> 5.739990754 | Q70: 17897 | R70: 159 | T70: 97335 | U70: 佐久市中央
B71: サングリモ中込 | C71: 1845 | D71: 1845 | E71: 345 | I71: 39507 | J71: 39507 | K71: 17036 | L71: 0 | Q71: 2449 | R71: 14 | V71: サングリモ中込
A72: 佐久市立臼田 | C72: 7139 | D72: 7139 | E72: 536 | I72: 84044 | J72: 84044 | K72: 45643 | L72: 348 | Q72: 8057 | R72: 42 | U72: 佐久市立臼田
A73: 佐久市立浅科 | C73: 5359 | D73: 5359 | E73: 417 | I73: 67270 | J73: 67270 | K73: 33356 | L73: 513 | Q73: 4530 | R73: 58 | U73: 佐久市立浅科
A74: 佐久市立望月 | C74: =D74+F74 -> 5079 | D74: 5079 | E74: 300 | I74: 39426 | J74: 39426 | K74: 14777 | L74: 281 | Q74: 3647 | R74: 28 | U74: 佐久市立望月
A75: 千曲市立更埴 | C75: =D75 -> 10471 | D75: 10471 | E75: 826 | F75: 本館に含む | G75: 本館に含む | H75: =(C75+C76+C77)*100/T75 -> 31.00996712 | I75: =J75+M75 -> 146515 | J75: 134684 | K75: 65247 | L75: 4296 | M75: 11831 | N75: 3838 | O75: 588 | P75: =(I75+I76+I77)/T75 -> 4.491453065 | Q75: 3134 | R75: 35 | T75: 58091 | U75: 千曲市立更埴
B76: 更埴西 | C76: 1432 | D76: 1432 | E76: 126 | F76: 0 | G76: 0 | I76: 26567 | J76: 26567 | K76: 11422 | L76: 1337 | Q76: 238 | R76: 5 | V76: 千曲市立更埴西
A77: 千曲市立戸倉 | C77: =D77 -> 6111 | D77: 6111 | E77: 537 | F77: 本館に含む | G77: 本館に含む | I77: =J77+M77 -> 87831 | J77: 83700 | K77: 30928 | L77: 3260 | M77: 4131 | N77: 1800 | O77: 290 | Q77: 6356 | R77: 31 | U77: 千曲市立戸倉
A78: 東御市立 | C78: =D78+F78 -> 5498 | D78: 5498 | E78: 654 | H78: =C78*100/T78 -> 18.62276869 | I78: =J78+M78 -> 143661 | J78: 140148 | K78: 71819 | L78: 1 | M78: 3513 | N78: 1132 | P78: =I78/T78 -> 4.866070521 | Q78: 10248 | R78: 45 | T78: 29523 | U78: 東御市立
A79: 安曇野市中央 | C79: 20855 | D79: 20855 | E79: 1464 | H79: =(C79+C80+C81+C82+C83)*100/T79 -> 41.29656621 | I79: 405819 | J79: 405819 | K79: 153332 | L79: 20490 | P79: =(I79+I80+I81+I82+I83)/T79 -> 7.580014575 | Q79: 14205 | R79: 83 | T79: 93308 | U79: 安曇野市中央
B80: 豊科 | C80: 9521 | D80: 9521 | E80: 767 | I80: 122761 | J80: 122761 | K80: 52088 | L80: 4090 | Q80: 8627 | R80: 66 | V80: 豊科
B81: 三郷 | C81: 3900 | D81: 3900 | E81: 481 | I81: 109954 | J81: 109954 | K81: 58289 | L81: 2908 | Q81: 3657 | R81: 28 | V81: 三郷
B82: 堀金 | C82: 1822 | D82: 1822 | E82: 186 | I82: 45110 | J82: 45110 | K82: 23592 | L82: 1320 | Q82: 3662 | R82: 23 | V82: 堀金
B83: 明科 | C83: 2435 | D83: 2435 | E83: 218 | I83: 23632 | J83: 23632 | K83: 10974 | L83: 1190 | Q83: 2106 | R83: 16 | V83: 明科
A84: 小海町 | C84: =D84+F84 -> 2497 | D84: 2497 | E84: 359 | H84: =C84*100/T84 -> 60.69518717 | I84: =J84+M84 -> 16930 | J84: 16267 | K84: 6454 | M84: 663 | P84: =I84/T84 -> 4.115216334 | Q84: 1765 | R84: 7 | T84: 4114 | U84: 小海町
A85: 佐久穂町立 | C85: 10854 | D85: 10854 | E85: 655 | H85: =C85*100/T85 -> 110.3273023 | I85: =J85+M85 -> 68659 | J85: 66627 | K85: 32065 | L85: 2064 | M85: 2032 | P85: =I85/T85 -> 6.978959138 | Q85: 7334 | R85: 44 | T85: 9838 | U85: 佐久穂町
A86: 軽井沢町立中軽井沢 | C86: 31017 | D86: 31017 | E86: 877 | H86: =(C86+C87)*100/T86 -> 157.831264 | I86: 162056 | J86: 162056 | K86: 57321 | L86: 2233 | P86: =(I86+I87)/T86 -> 8.246285365 | Q86: 576 | R86: 125 | T86: 19652 | U86: 軽井沢町立
A87: 軽井沢町立 離山 | C87: =D87+F87 -> 0 | U87: 軽井沢町立
A88: 御代田町立 | C88: 22880 | D88: 22880 | E88: 1219 | H88: =C88*100/T88 -> 143.2865731 | I88: 84422 | J88: 84422 | K88: 25110 | L88: 350 | P88: =I88/T88 -> 5.286948898 | Q88: 3626 | R88: 35 | T88: 15968 | U88: 御代田町立
A89: 下諏訪町立 | C89: 11078 | D89: 11078 | E89: 1535 | H89: =C89*100/T89 -> 59.85196391 | I89: 219743 | J89: 219743 | K89: 78190 | L89: 18525 | P89: 11.87222432 | Q89: 3446 | R89: 33 | T89: 18509 | U89: 下諏訪町立
A90: 富士見町 | C90: 18996 | D90: 18996 | E90: 1710 | H90: 136.8489302 | I90: 223542 | J90: 223542 | K90: 62434 | L90: 11479 | P90: 16.10417117 | Q90: 2413 | R90: 59 | T90: 13881 | U90: 富士見町
A91: 辰野町立辰野 | C91: =D91+F91 -> 16945 | D91: 16945 | E91: 738 | H91: 95.08978676 | I91: =J91+M91 -> 63803 | J91: 58257 | K91: 27154 | L91: 1073 | M91: 5546 | N91: 5546 | P91: 3.580415264 | Q91: 748 | R91: 13 | T91: 17820 | U91: 辰野町立辰野
A92: 箕輪町 | C92: 16597 | D92: 16597 | E92: 2175 | F92: 0 | G92: 0 | H92: 67.18345207 | I92: 73823 | J92: 71671 | K92: 39256 | L92: 728 | M92: 2152 | N92: 1875 | O92: 0 | P92: 2.98830149 | Q92: 779 | R92: 84 | T92: 24704 | U92: 箕輪町
A93: 飯島町 | C93: 10078 | D93: 10078 | E93: 821 | H93: 115.6529722 | I93: 66910 | J93: 50466 | K93: 32075 | L93: 1115 | M93: 16444 | N93: 14977 | O93: 395 | P93: 7.678448474 | Q93: 6128 | R93: 32 | T93: 8714 | U93: 飯島町
A94: 松川町 | C94: 4983 | D94: 4983 | E94: 745 | F94: 0 | G94: 0 | H94: 40.74074074 | I94: 89095 | J94: 88136 | K94: 43999 | L94: 319 | M94: 959 | N94: 218 | O94: 0 | P94: 7.284359415 | Q94: 31733 | R94: 100 | T94: 12231 | U94: 松川町
A95: 高森町立 | C95: =D95+F95 -> 3932 | D95: 3932 | E95: 838 | H95: 31.04619029 | I95: 105283 | J95: 95918 | K95: 52664 | L95: 370 | M95: 9365 | N95: 5909 | O95: 3 | P95: 8.312909593 | Q95: 7686 | R95: 72 | T95: 12665 | U95: 高森町立
A96: 阿南町立 | C96: =D96+F96 -> 5277 | D96: 5277 | E96: 384 | F96: 0 | G96: 0 | H96: 131.3666916 | I96: 37234 | J96: 24250 | K96: － | L96: － | M96: 12984 | N96: － | O96: － | P96: 9.269106298 | Q96: 11341 | R96: 26 | T96: 4017 | U96: 阿南町立
A97: 木曽町 | C97: =D97+F97 -> 4479 | D97: 4479 | E97: 544 | I97: 49369 | J97: 49369 | K97: - | L97: - | Q97: 1968 | R97: 38 | T97: 10004 | U97: 木曽町
B98: 日義分館 | V98: 日義分館
B99: 開田分館 | V99: 開田分館
B100: 三岳分館 | V100: 三岳分館
A101: 池田町 | C101: 3034 | D101: 3034 | E101: 316 | H101: 33.80124777 | I101: 45642 | J101: 45642 | K101: 16329 | L101: 118 | P101: 5.084893048 | Q101: 1519 | R101: 29 | T101: 8976 | U101: 池田町
A102: 坂城町立 | C102: 2448 | D102: 2448 | E102: 289 | H102: 18.17776788 | I102: 77133 | J102: 77133 | K102: 30987 | L102: 445 | P102: 5.727556249 | Q102: 6150 | R102: 15 | T102: 13467 | U102: 坂城町立
A103: 小布施町立 | C103: 13985 | D103: 13985 | E103: 1385 | H103: 131.3638925 | I103: 87602 | J103: 87602 | K103: 38736 | P103: 8.228630472 | Q103: 338 | R103: 33 | T103: 10646 | U103: 小布施町立
A104: 山ノ内町立 蟻川 | C104: 5327 | D104: 5327 | E104: 276 | H104: 49.42475413 | I104: 24845 | J104: 24845 | K104: 5750 | P104: =I104/T104 -> 2.305158657 | Q104: 6075 | R104: 86 | T104: 10778 | U104: 山ノ内町立蟻川
A105: 川上村文化 センター | C105: 1612 | D105: 1612 | E105: 180 | H105: =C105*100/T105 -> 41.51429307 | I105: 18157 | J105: 18157 | K105: 6201 | L105: 1708 | P105: 4.676023693 | Q105: 2071 | R105: 10 | T105: 3883 | U105: 川上村文化センター
A106: 南牧村 | C106: 2862 | D106: 2862 | E106: 65 | H106: 93.2247557 | I106: 9297 | J106: 9297 | K106: 2206 | L106: 665 | P106: 3.028338762 | Q106: 243 | R106: 17 | T106: 3070 | U106: 南牧村
A107: 南相木村立 ふれあい | C107: 1775 | D107: 1775 | E107: 146 | H107: 193.989071 | I107: 11939 | J107: 11939 | K107: 1679 | L107: 1348 | P107: 13.04808743 | Q107: 479 | R107: 4 | T107: 915 | U107: 南相木村立
A108: 青木村 | C108: 1125 | D108: 1125 | E108: 153 | H108: 28.35896143 | I108: 40189 | J108: 40189 | K108: 21565 | L108: 8 | P108: 10.13082934 | Q108: 5608 | R108: 19 | T108: 3967 | U108: 青木村
A109: 原村 | C109: 13611 | D109: 13611 | E109: 1104 | H109: =C109*100/T109 -> 177.527064 | I109: 94031 | J109: 94031 | K109: 31806 | P109: 12.26437981 | Q109: 2259 | R109: 34 | T109: 7667 | U109: 原村
A110: 南箕輪村 | C110: 7671 | D110: 7671 | E110: 1330 | H110: 47.69632531 | I110: 103428 | J110: 103428 | K110: 41702 | L110: 4943 | P110: 6.430889759 | Q110: 11531 | R110: 33 | T110: 16083 | U110: 南箕輪村
A111: 中川村 | C111: 5765 | D111: 5765 | E111: 276 | H111: 127.9121367 | I111: 21157 | J111: 21157 | K111: 9553 | L111: 76 | P111: 4.694253384 | Q111: 6394 | R111: 33 | T111: 4507 | U111: 中川村
A112: 宮田村 | C112: 8150 | D112: 8150 | E112: 657 | H112: 96.71294648 | I112: 52434 | J112: 52434 | K112: 35416 | L112: 1601 | P112: 6.222143111 | Q112: 3878 | R112: 26 | T112: 8427 | U112: 宮田村
A113: 阿智村 | C113: =D113+F113 -> 5326 | D113: 5326 | E113: 379 | H113: =C113*100/T113 -> 91.3393929 | I113: 31377 | J113: 31377 | K113: 19011 | L113: 752 | P113: =I113/T113 -> 5.381066712 | Q113: 5615 | R113: 86 | T113: 5831 | U113: 阿智村
A114: 根羽村立 | C114: 858 | D114: 858 | E114: 32 | H114: 105.7953144 | I114: 305 | J114: 305 | P114: 0.3760789149 | T114: 811 | U114: 根羽村立
A115: 下條村立 | C115: 6760 | D115: 6760 | E115: 375 | H115: =C115*100/T115 -> 200.9512485 | I115: 45676 | J115: 45676 | K115: 22269 | L115: 1177 | P115: 13.57788347 | Q115: 9563 | R115: 64 | T115: 3364 | U115: 下條村立
A116: 天龍村 | C116: 1340 | D116: 1340 | E116: 18 | F116: 0 | G116: 0 | H116: 124.1890639 | I116: 1725 | J116: 1725 | K116: 930 | L116: 302 | M116: 0 | N116: 0 | O116: 0 | P116: 1.598702502 | Q116: 161 | R116: 3 | T116: 1079 | U116: 天龍村
A117: 喬木村立 椋鳩十記念 | C117: 1673 | D117: 1673 | E117: 520 | H117: 29.14126459 | I117: 34633 | J117: 34633 | K117: 19954 | P117: 6.032572723 | Q117: 11004 | R117: 71 | T117: 5741 | U117: 喬木村立椋鳩十記念
A118: 豊丘村 | C118: 1991 | D118: 1991 | E118: 349 | H118: =C118*100/T118 -> 31.61321054 | I118: =J118+M118 -> 63895 | J118: 62934 | K118: 32021 | L118: 0 | M118: 961 | N118: 333 | O118: 0 | P118: 10.14528422 | Q118: 1373 | R118: 19 | T118: 6298 | U118: 豊丘村
A119: 大桑村 | C119: 571 | D119: 571 | E119: 20 | H119: =C119*100/T119 -> 17.73842808 | I119: =J119+M119 -> 5919 | J119: 5919 | K119: 2043 | P119: 1.838769804 | Q119: 4 | R119: 2 | T119: 3219 | U119: 大桑村
A120: 山形村 | C120: 4246 | D120: 4246 | H120: 51.41680794 | I120: 38258 | J120: 38258 | P120: 4.632840882 | T120: 8258 | U120: 山形村
A121: 村立朝日村 | C121: 2447 | D121: 2447 | E121: 143 | H121: 59.63928833 | I121: 10687 | J121: 10687 | K121: 4182 | P121: 2.604679503 | Q121: 965 | R121: 5 | T121: 4103 | U121: 村立朝日村
A122: 筑北村 | C122: 1003 | D122: 1003 | E122: 115 | H122: =C122*100/T122 -> 25.42458809 | I122: 15677 | J122: 15677 | K122: 3724 | L122: - | P122: =I122/T122 -> 3.973891001 | Q122: 544 | R122: 16 | T122: 3945 | U122: 筑北村
A123: 松川村 | C123: 6986 | D123: 6986 | E123: 495 | H123: 73.4595163 | I123: 57993 | J123: 57993 | K123: 24572 | L123: 1112 | P123: 6.098107256 | Q123: 625 | R123: 19 | T123: 9510 | U123: 松川村
A124: 白馬村 | C124: 3059 | D124: 3059 | E124: 164 | H124: =C124*100/T124 -> 36.06035601 | I124: 24348 | J124: 24348 | K124: 7319 | L124: 934 | P124: 2.87021101 | Q124: 1425 | R124: 5 | T124: 8483 | U124: 白馬村
A125: 小谷村 | C125: 2034 | D125: 2034 | E125: 162 | H125: 79.85865724 | I125: 12923 | J125: 12923 | K125: 4786 | L125: 1514 | P125: =I125/T125 -> 5.073812328 | Q125: 373 | R125: 7 | T125: 2547 | U125: 小谷村
A126: ライブラリー８２ | C126: 1288 | D126: 1288 | I126: 105 | J126: 105 | U126: ライブラリー８２
A127: 合計 | C127: =SUM(C7:C126) -> 936864 | D127: =SUM(D7:D126) -> 932536 | E127: =SUM(E7:E126) -> 79864 | F127: =SUM(F7:F126) -> 4328 | G127: =SUM(G7:G126) -> 507 | H127: - | I127: =SUM(I7:I126) -> 11093471 | J127: =SUM(J7:J126) -> 10864708 | K127: 4428554 | L127: 224272 | M127: =SUM(M7:M126) -> 228763 | N127: 81900 | O127: 1362 | P127: =(I127)/T7 -> 5.525608337 | Q127: =SUM(Q7:Q126) -> 537723 | R127: =SUM(R7:R126) -> 3779 | T127: =SUM(T8:T126) -> 1941359
A129: ※１ 登録率＝登録者数総計/奉仕対象人口 * 100
A131: ※２ 人口１人当貸出冊数＝個人貸出冊数/奉仕対象人口
A133: ※３ 人口１人当貸出冊数(合計）＝個人貸出冊数総計/県人口
A135: ※4 登録者数・移動図書館、本館どちらでも利用できるため（本館で一括登録）、移動図書館車のみの登録人数は不明
A136: 貸出冊数・移動図書館車個人貸出の総数のみ記載。移動図書館車での団体貸出があるため、児童書・視聴覚資料の個人貸出数は不明
B137: （市立飯山図書館）
